[Event "January 9 Late 2024"]
[Site "https://www.chess.com"]
[Date "2024.01.09"]
[Round "6"]
[White "Lizak, Peter"]
[Black "Silva Lucena, Cristian"]
[Result "1-0"]
[Board "84"]
[TimeControl "180+1"]
[WhiteFideId "731595"]
[BlackFideId "2232588"]
[WhiteElo "2633"]
[BlackElo "2494"]
[WhiteTeam "HUN"]
[BlackTeam "ESP"]
[WhiteClock "0:01:51"]
[BlackClock "0:01:46"]

1. d4 {[%clk 0:03:00]}  Nf6 {[%clk 0:02:59]} 2. Nc3 {[%clk 0:03:00]}  d5 {[%clk 0:02:58]} 3. Bf4 {[%clk 0:03:00]}  a6 {[%clk 0:02:56]} 4. e3 {[%clk 0:03:00]}  g6 {[%clk 0:02:56]} 5. h4 {[%clk 0:03:00]}  h5 {[%clk 0:02:55]} 6. Nf3 {[%clk 0:03:00]}  Bg7 {[%clk 0:02:56]} 7. Ne5 {[%clk 0:03:00]}  Nbd7 {[%clk 0:02:51]} 8. f3 {[%clk 0:02:57]}  c5 {[%clk 0:02:49]} 9. Qd2 {[%clk 0:02:57]}  O-O {[%clk 0:02:43]} 10. O-O-O {[%clk 0:02:50]}  c4 {[%clk 0:02:40]} 11. g4 {[%clk 0:02:48]}  b5 {[%clk 0:02:38]} 12. g5 {[%clk 0:02:48]}  Ne8 {[%clk 0:02:29]} 13. Nc6 {[%clk 0:02:43]}  Qa5 {[%clk 0:02:28]} 14. Nxe7+ {[%clk 0:02:40]}  Kh7 {[%clk 0:02:26]} 15. a3 {[%clk 0:02:29]}  b4 {[%clk 0:02:18]} 16. axb4 {[%clk 0:02:17]}  Qa1+ {[%clk 0:02:16]} 17. Nb1 {[%clk 0:02:17]}  Nb6 {[%clk 0:02:14]} 18. Qc3 {[%clk 0:02:14]}  Ra7 {[%clk 0:02:04]} 19. Nxc8 {[%clk 0:02:06]}  Nxc8 {[%clk 0:02:02]} 20. Qa3 {[%clk 0:02:06]}  Qxa3 {[%clk 0:02:02]} 21. Nxa3 {[%clk 0:02:02]}  Nc7 {[%clk 0:02:02]} 22. Bxc7 {[%clk 0:01:56]}  Rxc7 {[%clk 0:02:01]} 23. c3 {[%clk 0:01:55]}  Re8 {[%clk 0:02:00]} 24. Kd2 {[%clk 0:01:54]}  Nd6 {[%clk 0:01:59]} 25. Nc2 {[%clk 0:01:53]}  Rc6 {[%clk 0:01:52]} 26. Bh3 {[%clk 0:01:52]}  f6 {[%clk 0:01:46]} 27. Bd7 {[%clk 0:01:51]} 1-0

[Event "January 9 Late 2024"]
[Site "https://www.chess.com"]
[Date "2024.01.09"]
[Round "6"]
[White "Pesotskiy, Mikhail"]
[Black "Poltorak, Sebastian"]
[Result "1/2-1/2"]
[Board "85"]
[TimeControl "180+1"]
[WhiteFideId "34164453"]
[BlackFideId "1199498"]
[WhiteElo "2494"]
[BlackElo "2629"]
[WhiteTeam "RUS"]
[BlackTeam "POL"]
[WhiteClock "0:00:08"]
[BlackClock "0:00:09"]

1. d4 {[%clk 0:02:22]}  Nf6 {[%clk 0:02:58]} 2. c4 {[%clk 0:02:22]}  g6 {[%clk 0:02:58]} 3. Nc3 {[%clk 0:02:23]}  d5 {[%clk 0:02:59]} 4. Bg5 {[%clk 0:02:22]}  Ne4 {[%clk 0:02:58]} 5. Nxe4 {[%clk 0:02:23]}  dxe4 {[%clk 0:02:58]} 6. Qd2 {[%clk 0:02:23]}  Bg7 {[%clk 0:02:58]} 7. e3 {[%clk 0:02:24]}  c5 {[%clk 0:02:58]} 8. d5 {[%clk 0:02:24]}  O-O {[%clk 0:02:40]} 9. Ne2 {[%clk 0:02:23]}  Bf5 {[%clk 0:02:23]} 10. Nc3 {[%clk 0:02:21]}  Nd7 {[%clk 0:02:23]} 11. Be2 {[%clk 0:02:21]}  h6 {[%clk 0:02:23]} 12. Bh4 {[%clk 0:02:20]}  g5 {[%clk 0:02:23]} 13. Bg3 {[%clk 0:02:21]}  Ne5 {[%clk 0:02:20]} 14. O-O {[%clk 0:02:21]}  Qd7 {[%clk 0:02:14]} 15. Bxe5 {[%clk 0:02:20]}  Bxe5 {[%clk 0:02:13]} 16. Qc2 {[%clk 0:02:21]}  b6 {[%clk 0:01:40]} 17. Nxe4 {[%clk 0:02:18]}  Bxe4 {[%clk 0:01:37]} 18. Qxe4 {[%clk 0:02:19]}  Bxb2 {[%clk 0:01:38]} 19. Rab1 {[%clk 0:02:13]}  f5 {[%clk 0:01:37]} 20. Qe6+ {[%clk 0:02:04]}  Qxe6 {[%clk 0:01:36]} 21. dxe6 {[%clk 0:02:05]}  Be5 {[%clk 0:01:36]} 22. Bf3 {[%clk 0:02:05]}  Rad8 {[%clk 0:01:36]} 23. Bd5 {[%clk 0:02:06]}  Rd6 {[%clk 0:01:34]} 24. f4 {[%clk 0:01:58]}  Bc3 {[%clk 0:01:25]} 25. Rb3 {[%clk 0:01:45]}  Bf6 {[%clk 0:01:21]} 26. g3 {[%clk 0:01:37]}  Kg7 {[%clk 0:01:18]} 27. Kg2 {[%clk 0:01:29]}  Kg6 {[%clk 0:01:09]} 28. h3 {[%clk 0:01:22]}  Rb8 {[%clk 0:01:04]} 29. a4 {[%clk 0:01:21]}  Rg8 {[%clk 0:00:53]} 30. Kf3 {[%clk 0:01:17]}  h5 {[%clk 0:00:50]} 31. g4 {[%clk 0:01:13]}  hxg4+ {[%clk 0:00:48]} 32. hxg4 {[%clk 0:01:14]}  gxf4 {[%clk 0:00:38]} 33. exf4 {[%clk 0:01:12]}  fxg4+ {[%clk 0:00:36]} 34. Kxg4 {[%clk 0:01:13]}  Bd4 {[%clk 0:00:36]} 35. Rh3 {[%clk 0:01:07]}  Rdd8 {[%clk 0:00:24]} 36. Rfh1 {[%clk 0:01:04]}  Bg7 {[%clk 0:00:20]} 37. f5+ {[%clk 0:00:45]}  Kf6 {[%clk 0:00:20]} 38. Kf4 {[%clk 0:00:46]}  Rh8 {[%clk 0:00:08]} 39. Rxh8 {[%clk 0:00:13]}  Rxh8 {[%clk 0:00:09]} 40. Rxh8 {[%clk 0:00:13]}  Bxh8 {[%clk 0:00:09]} 41. Be4 {[%clk 0:00:13]}  Bg7 {[%clk 0:00:10]} 42. Bd5 {[%clk 0:00:14]}  Bh6+ {[%clk 0:00:10]} 43. Ke4 {[%clk 0:00:14]}  Bd2 {[%clk 0:00:10]} 44. Bc6 {[%clk 0:00:14]}  Bc3 {[%clk 0:00:09]} 45. Bd5 {[%clk 0:00:14]}  a6 {[%clk 0:00:08]} 46. Bc6 {[%clk 0:00:15]}  Bb4 {[%clk 0:00:08]} 47. Bb7 {[%clk 0:00:16]}  a5 {[%clk 0:00:04]} 48. Bc6 {[%clk 0:00:15]}  Bc3 {[%clk 0:00:04]} 49. Be8 {[%clk 0:00:13]}  Kg5 {[%clk 0:00:03]} 50. Bg6 {[%clk 0:00:12]}  Kf6 {[%clk 0:00:03]} 51. Kd5 {[%clk 0:00:12]}  Bd2 {[%clk 0:00:03]} 52. Kc6 {[%clk 0:00:13]}  Bb4 {[%clk 0:00:03]} 53. Kxb6 {[%clk 0:00:13]}  Ke5 {[%clk 0:00:03]} 54. Kc6 {[%clk 0:00:13]}  Kf6 {[%clk 0:00:03]} 55. Kd7 {[%clk 0:00:12]}  Bc3 {[%clk 0:00:03]} 56. Kc6 {[%clk 0:00:11]}  Bb4 {[%clk 0:00:03]} 57. Kc7 {[%clk 0:00:11]}  Kg7 {[%clk 0:00:03]} 58. Kd7 {[%clk 0:00:12]}  Kf6 {[%clk 0:00:04]} 59. Ke8 {[%clk 0:00:11]}  Bc3 {[%clk 0:00:04]} 60. Kd7 {[%clk 0:00:10]}  Bb4 {[%clk 0:00:05]} 61. Kc8 {[%clk 0:00:10]}  Bc3 {[%clk 0:00:05]} 62. Kb7 {[%clk 0:00:11]}  Bb4 {[%clk 0:00:06]} 63. Ka6 {[%clk 0:00:12]}  Kg7 {[%clk 0:00:06]} 64. Kb5 {[%clk 0:00:13]}  Kf6 {[%clk 0:00:07]} 65. Kc6 {[%clk 0:00:12]}  Kg7 {[%clk 0:00:07]} 66. Bf7 {[%clk 0:00:08]}  Kf6 {[%clk 0:00:08]} 67. Bg6 {[%clk 0:00:08]}  Kg7 {[%clk 0:00:08]} 68. Kd7 {[%clk 0:00:08]}  Kf6 {[%clk 0:00:09]} 1/2-1/2

[Event "January 9 Late 2024"]
[Site "https://www.chess.com"]
[Date "2024.01.09"]
[Round "6"]
[White "Fiedorek, Michal"]
[Black "Zhu, Jiner"]
[Result "0-1"]
[Board "88"]
[TimeControl "180+1"]
[WhiteFideId "1199528"]
[BlackFideId "8608059"]
[WhiteElo "2481"]
[BlackElo "2615"]
[WhiteTeam "POL"]
[BlackTeam "CHN"]
[WhiteClock "0:00:02"]
[BlackClock "0:00:51"]

1. e4 {[%clk 0:03:00]}  c5 {[%clk 0:02:59]} 2. Nf3 {[%clk 0:03:01]}  d6 {[%clk 0:02:58]} 3. d4 {[%clk 0:03:01]}  cxd4 {[%clk 0:02:59]} 4. Nxd4 {[%clk 0:03:02]}  Nf6 {[%clk 0:03:00]} 5. Nc3 {[%clk 0:03:03]}  Nc6 {[%clk 0:03:00]} 6. Bg5 {[%clk 0:03:02]}  Bd7 {[%clk 0:03:00]} 7. Qd2 {[%clk 0:02:58]}  Rc8 {[%clk 0:02:59]} 8. f4 {[%clk 0:02:58]}  Nxd4 {[%clk 0:02:56]} 9. Qxd4 {[%clk 0:02:58]}  Qa5 {[%clk 0:02:53]} 10. O-O-O {[%clk 0:02:58]}  h6 {[%clk 0:02:51]} 11. Bxf6 {[%clk 0:02:46]}  gxf6 {[%clk 0:02:52]} 12. f5 {[%clk 0:02:44]}  h5 {[%clk 0:02:49]} 13. Kb1 {[%clk 0:02:44]}  Rg8 {[%clk 0:02:48]} 14. g3 {[%clk 0:02:44]}  Bh6 {[%clk 0:02:46]} 15. Be2 {[%clk 0:02:44]}  h4 {[%clk 0:02:42]} 16. gxh4 {[%clk 0:02:37]}  Qc5 {[%clk 0:02:39]} 17. Qxc5 {[%clk 0:02:35]}  Rxc5 {[%clk 0:02:40]} 18. Rhg1 {[%clk 0:02:35]}  Rxg1 {[%clk 0:02:38]} 19. Rxg1 {[%clk 0:02:35]}  Kf8 {[%clk 0:02:39]} 20. Bd3 {[%clk 0:02:30]}  Bc6 {[%clk 0:02:38]} 21. Ne2 {[%clk 0:02:22]}  Re5 {[%clk 0:02:38]} 22. Rg4 {[%clk 0:02:16]}  e6 {[%clk 0:02:23]} 23. fxe6 {[%clk 0:02:09]}  fxe6 {[%clk 0:02:21]} 24. c3 {[%clk 0:02:00]}  Kf7 {[%clk 0:02:15]} 25. Nd4 {[%clk 0:01:57]}  Bd7 {[%clk 0:02:15]} 26. Kc2 {[%clk 0:01:46]}  Rh5 {[%clk 0:02:08]} 27. b3 {[%clk 0:01:29]}  Be3 {[%clk 0:01:46]} 28. Nf3 {[%clk 0:01:18]}  Bc6 {[%clk 0:01:38]} 29. Nd4 {[%clk 0:01:06]}  Bd7 {[%clk 0:01:36]} 30. Nf3 {[%clk 0:01:05]}  a6 {[%clk 0:01:34]} 31. a4 {[%clk 0:00:44]}  f5 {[%clk 0:01:11]} 32. exf5 {[%clk 0:00:41]}  exf5 {[%clk 0:01:12]} 33. Bc4+ {[%clk 0:00:31]}  Kf6 {[%clk 0:01:12]} 34. Rg8 {[%clk 0:00:31]}  Bc6 {[%clk 0:01:11]} 35. Nd4 {[%clk 0:00:22]}  Be4+ {[%clk 0:01:09]} 36. Kb2 {[%clk 0:00:20]}  d5 {[%clk 0:01:05]} 37. Be2 {[%clk 0:00:10]}  Rxh4 {[%clk 0:01:05]} 38. Rf8+ {[%clk 0:00:08]}  Kg6 {[%clk 0:00:55]} 39. Rg8+ {[%clk 0:00:06]}  Kf7 {[%clk 0:00:55]} 40. Rb8 {[%clk 0:00:05]}  Rxh2 {[%clk 0:00:55]} 41. Rxb7+ {[%clk 0:00:05]}  Ke8 {[%clk 0:00:52]} 42. Ka3 {[%clk 0:00:02]}  Bxd4 {[%clk 0:00:52]} 43. Bxa6 {[%clk 0:00:03]}  Bxc3 {[%clk 0:00:51]} 44. Bb5+ {[%clk 0:00:03]}  Kf8 {[%clk 0:00:51]} 45. a5 {[%clk 0:00:02]}  Bxa5 {[%clk 0:00:51]} 0-1

[Event "January 9 Late 2024"]
[Site "https://www.chess.com"]
[Date "2024.01.09"]
[Round "6"]
[White "Li, Tedric"]
[Black "Hamblok, Roel"]
[Result "0-1"]
[Board "90"]
[TimeControl "180+1"]
[WhiteFideId "3242897"]
[BlackFideId "209317"]
[WhiteElo "2473"]
[BlackElo "2607"]
[WhiteTeam "AUS"]
[BlackTeam "BEL"]
[WhiteClock "0:00:10"]
[BlackClock "0:00:18"]

1. d4 {[%clk 0:03:00]}  Nf6 {[%clk 0:02:58]} 2. c4 {[%clk 0:03:01]}  c5 {[%clk 0:02:59]} 3. d5 {[%clk 0:03:01]}  Ne4 {[%clk 0:02:59]} 4. Nf3 {[%clk 0:02:47]}  Qa5+ {[%clk 0:02:56]} 5. Nbd2 {[%clk 0:02:41]}  d6 {[%clk 0:02:31]} 6. e3 {[%clk 0:02:40]}  Bf5 {[%clk 0:02:24]} 7. Bd3 {[%clk 0:02:37]}  Nxf2 {[%clk 0:02:23]} 8. Kxf2 {[%clk 0:02:34]}  Bxd3 {[%clk 0:02:23]} 9. Nb3 {[%clk 0:02:34]}  Qc7 {[%clk 0:02:20]} 10. Qxd3 {[%clk 0:02:33]}  Nd7 {[%clk 0:02:21]} 11. e4 {[%clk 0:02:31]}  g6 {[%clk 0:02:21]} 12. Bd2 {[%clk 0:02:31]}  Bg7 {[%clk 0:02:22]} 13. Bc3 {[%clk 0:02:31]}  Ne5 {[%clk 0:02:22]} 14. Bxe5 {[%clk 0:02:30]}  dxe5 {[%clk 0:02:23]} 15. Qe3 {[%clk 0:02:28]}  b6 {[%clk 0:02:23]} 16. a4 {[%clk 0:02:22]}  O-O {[%clk 0:02:22]} 17. Nc1 {[%clk 0:02:20]}  f5 {[%clk 0:02:22]} 18. exf5 {[%clk 0:02:19]}  gxf5 {[%clk 0:02:15]} 19. Qd2 {[%clk 0:01:54]}  e4 {[%clk 0:02:10]} 20. Ne1 {[%clk 0:01:52]}  e3+ {[%clk 0:02:07]} 21. Qxe3 {[%clk 0:00:56]}  Bd4 {[%clk 0:02:05]} 22. Ncd3 {[%clk 0:00:56]}  Bxe3+ {[%clk 0:01:58]} 23. Kxe3 {[%clk 0:00:57]}  f4+ {[%clk 0:01:57]} 24. Kf3 {[%clk 0:00:54]}  e5 {[%clk 0:01:43]} 25. Nf2 {[%clk 0:00:47]}  Rae8 {[%clk 0:01:19]} 26. Ne4 {[%clk 0:00:47]}  Qf7 {[%clk 0:01:19]} 27. Ke2 {[%clk 0:00:42]}  Qg6 {[%clk 0:01:18]} 28. Kf3 {[%clk 0:00:40]}  Kh8 {[%clk 0:01:13]} 29. Rc1 {[%clk 0:00:23]}  Rg8 {[%clk 0:01:03]} 30. Rc2 {[%clk 0:00:23]}  Ref8 {[%clk 0:01:02]} 31. Re2 {[%clk 0:00:21]}  Qg4+ {[%clk 0:00:50]} 32. Kf2 {[%clk 0:00:21]}  Qh4+ {[%clk 0:00:50]} 33. Kf1 {[%clk 0:00:20]}  f3 {[%clk 0:00:30]} 34. Nxf3 {[%clk 0:00:20]}  Rxg2 {[%clk 0:00:26]} 35. Rxg2 {[%clk 0:00:10]}  Qxe4 {[%clk 0:00:18]} 0-1

[Event "January 9 Late 2024"]
[Site "https://www.chess.com"]
[Date "2024.01.09"]
[Round "6"]
[White "Garrido Diaz, Jose Antonio"]
[Black "Womacka, Mathias"]
[Result "1-0"]
[Board "92"]
[TimeControl "180+1"]
[WhiteFideId "24516252"]
[BlackFideId "4611390"]
[WhiteElo "2462"]
[BlackElo "2592"]
[WhiteTeam "ESP"]
[BlackTeam "GER"]
[WhiteClock "0:00:44"]
[BlackClock "0:00:00"]

1. e4 {[%clk 0:02:53]}  c5 {[%clk 0:02:59]} 2. Nc3 {[%clk 0:02:52]}  Nc6 {[%clk 0:02:59]} 3. g3 {[%clk 0:02:53]}  g6 {[%clk 0:02:58]} 4. Bg2 {[%clk 0:02:53]}  Bg7 {[%clk 0:02:58]} 5. d3 {[%clk 0:02:54]}  d6 {[%clk 0:02:57]} 6. Be3 {[%clk 0:02:53]}  e5 {[%clk 0:02:56]} 7. Qd2 {[%clk 0:02:52]}  Nge7 {[%clk 0:02:55]} 8. Bh6 {[%clk 0:02:52]}  O-O {[%clk 0:02:55]} 9. h4 {[%clk 0:02:52]}  Bxh6 {[%clk 0:02:54]} 10. Qxh6 {[%clk 0:02:51]}  f6 {[%clk 0:02:55]} 11. Qd2 {[%clk 0:02:44]}  Nd4 {[%clk 0:02:54]} 12. Nge2 {[%clk 0:02:42]}  Bg4 {[%clk 0:02:46]} 13. f4 {[%clk 0:02:34]}  Qd7 {[%clk 0:02:44]} 14. O-O {[%clk 0:02:30]}  f5 {[%clk 0:02:25]} 15. Rae1 {[%clk 0:02:26]}  Rf7 {[%clk 0:01:59]} 16. Nxd4 {[%clk 0:02:24]}  cxd4 {[%clk 0:01:56]} 17. Nd5 {[%clk 0:02:24]}  Nxd5 {[%clk 0:01:51]} 18. exd5 {[%clk 0:02:25]}  exf4 {[%clk 0:01:50]} 19. Qxf4 {[%clk 0:02:23]}  Rc8 {[%clk 0:01:35]} 20. Rf2 {[%clk 0:02:19]}  Re7 {[%clk 0:01:30]} 21. Re6 {[%clk 0:01:44]}  Rxe6 {[%clk 0:01:27]} 22. dxe6 {[%clk 0:01:45]}  Qxe6 {[%clk 0:01:27]} 23. Qxd4 {[%clk 0:01:46]}  Qe1+ {[%clk 0:01:18]} 24. Kh2 {[%clk 0:01:45]}  Qe5 {[%clk 0:01:15]} 25. Qxe5 {[%clk 0:01:22]}  dxe5 {[%clk 0:01:15]} 26. Bxb7 {[%clk 0:01:23]}  Rb8 {[%clk 0:01:14]} 27. Bd5+ {[%clk 0:01:24]}  Kg7 {[%clk 0:01:15]} 28. c4 {[%clk 0:01:18]}  h6 {[%clk 0:00:59]} 29. c5 {[%clk 0:01:11]}  Rd8 {[%clk 0:00:50]} 30. Bc4 {[%clk 0:01:09]}  g5 {[%clk 0:00:47]} 31. hxg5 {[%clk 0:01:09]}  hxg5 {[%clk 0:00:48]} 32. b4 {[%clk 0:01:07]}  f4 {[%clk 0:00:48]} 33. b5 {[%clk 0:01:04]}  Rh8+ {[%clk 0:00:39]} 34. Kg2 {[%clk 0:01:04]}  Rh3 {[%clk 0:00:36]} 35. gxf4 {[%clk 0:01:03]}  exf4 {[%clk 0:00:36]} 36. c6 {[%clk 0:01:03]}  Rg3+ {[%clk 0:00:33]} 37. Kf1 {[%clk 0:01:03]}  f3 {[%clk 0:00:32]} 38. c7 {[%clk 0:00:59]}  Rh3 {[%clk 0:00:28]} 39. Ke1 {[%clk 0:00:57]}  Rh8 {[%clk 0:00:24]} 40. Rc2 {[%clk 0:00:55]}  Re8+ {[%clk 0:00:21]} 41. Kf2 {[%clk 0:00:53]}  Kf6 {[%clk 0:00:17]} 42. Bd5 {[%clk 0:00:54]}  Ke5 {[%clk 0:00:15]} 43. Bb7 {[%clk 0:00:53]}  Kd6 {[%clk 0:00:11]} 44. c8=Q {[%clk 0:00:52]}  Bxc8 {[%clk 0:00:09]} 45. Bxc8 {[%clk 0:00:50]}  Rf8 {[%clk 0:00:06]} 46. Bg4 {[%clk 0:00:47]}  Kd5 {[%clk 0:00:00]} 47. Rc4 {[%clk 0:00:44]} 1-0

[Event "January 9 Late 2024"]
[Site "https://www.chess.com"]
[Date "2024.01.10"]
[Round "6"]
[White "Yagupov, Igor"]
[Black "Hoeffer, David"]
[Result "0-1"]
[Board "94"]
[TimeControl "180+1"]
[WhiteFideId "4113632"]
[BlackFideId "24606766"]
[WhiteElo "2583"]
[BlackElo "2457"]
[WhiteTeam "RUS"]
[BlackTeam "GER"]
[WhiteClock "0:00:34"]
[BlackClock "0:00:29"]

1. e4 {[%clk 0:03:00]}  c5 {[%clk 0:02:58]} 2. Nf3 {[%clk 0:02:59]}  d6 {[%clk 0:02:56]} 3. d4 {[%clk 0:02:59]}  cxd4 {[%clk 0:02:57]} 4. Nxd4 {[%clk 0:03:00]}  Nf6 {[%clk 0:02:48]} 5. Nc3 {[%clk 0:03:00]}  Nc6 {[%clk 0:02:45]} 6. Bg5 {[%clk 0:02:58]}  e6 {[%clk 0:02:37]} 7. Qd2 {[%clk 0:02:56]}  a6 {[%clk 0:02:32]} 8. O-O-O {[%clk 0:02:55]}  Bd7 {[%clk 0:02:32]} 9. f4 {[%clk 0:02:50]}  h6 {[%clk 0:02:23]} 10. Bh4 {[%clk 0:02:43]}  b5 {[%clk 0:02:23]} 11. Bxf6 {[%clk 0:02:37]}  gxf6 {[%clk 0:02:22]} 12. Nxc6 {[%clk 0:02:30]}  Bxc6 {[%clk 0:02:19]} 13. f5 {[%clk 0:02:19]}  h5 {[%clk 0:02:18]} 14. Kb1 {[%clk 0:02:18]}  b4 {[%clk 0:01:56]} 15. Ne2 {[%clk 0:02:16]}  e5 {[%clk 0:01:39]} 16. Qxb4 {[%clk 0:02:07]}  d5 {[%clk 0:01:38]} 17. Qc3 {[%clk 0:02:07]}  Rc8 {[%clk 0:01:38]} 18. exd5 {[%clk 0:01:58]}  Ba4 {[%clk 0:01:19]} 19. Qd3 {[%clk 0:01:32]}  Bxc2+ {[%clk 0:01:16]} 20. Qxc2 {[%clk 0:01:32]}  Rxc2 {[%clk 0:01:17]} 21. Kxc2 {[%clk 0:01:33]}  Qc8+ {[%clk 0:01:11]} 22. Nc3 {[%clk 0:01:31]}  Qxf5+ {[%clk 0:01:09]} 23. Bd3 {[%clk 0:01:30]}  Qf2+ {[%clk 0:01:06]} 24. Rd2 {[%clk 0:01:27]}  Qb6 {[%clk 0:01:02]} 25. Bf5 {[%clk 0:01:20]}  Bd6 {[%clk 0:00:58]} 26. Re1 {[%clk 0:01:15]}  Ke7 {[%clk 0:00:58]} 27. Re4 {[%clk 0:01:14]}  Rb8 {[%clk 0:00:56]} 28. Na4 {[%clk 0:00:56]}  Qg1 {[%clk 0:00:45]} 29. g3 {[%clk 0:00:46]}  Rb7 {[%clk 0:00:43]} 30. Rc4 {[%clk 0:00:43]}  Qf1 {[%clk 0:00:34]} 31. Bd3 {[%clk 0:00:40]}  Qa1 {[%clk 0:00:31]} 32. Nc3 {[%clk 0:00:34]}  Rxb2# {[%clk 0:00:29]} 0-1

[Event "January 9 Late 2024"]
[Site "https://www.chess.com"]
[Date "2024.01.09"]
[Round "6"]
[White "Rogov, Matfey"]
[Black "Avalos Parra, Joao"]
[Result "1-0"]
[Board "95"]
[TimeControl "180+1"]
[WhiteFideId "44191308"]
[BlackFideId "3402541"]
[WhiteElo "2582"]
[BlackElo "2416"]
[WhiteTeam "RUS"]
[BlackTeam "CHI"]
[WhiteClock "0:00:28"]
[BlackClock "0:00:09"]

1. e4 {[%clk 0:03:00]}  e5 {[%clk 0:03:00]} 2. Nf3 {[%clk 0:02:59]}  Nc6 {[%clk 0:03:00]} 3. c3 {[%clk 0:02:58]}  Nge7 {[%clk 0:02:58]} 4. d4 {[%clk 0:02:57]}  exd4 {[%clk 0:02:59]} 5. cxd4 {[%clk 0:02:57]}  d5 {[%clk 0:02:59]} 6. Nc3 {[%clk 0:02:57]}  dxe4 {[%clk 0:02:39]} 7. Nxe4 {[%clk 0:02:58]}  Bf5 {[%clk 0:02:28]} 8. Bd3 {[%clk 0:02:55]}  Nb4 {[%clk 0:02:26]} 9. Bb1 {[%clk 0:02:28]}  Qd5 {[%clk 0:02:26]} 10. Qe2 {[%clk 0:02:22]}  O-O-O {[%clk 0:02:18]} 11. O-O {[%clk 0:02:17]}  Ng6 {[%clk 0:02:12]} 12. a3 {[%clk 0:02:14]}  Nc6 {[%clk 0:02:08]} 13. Nc3 {[%clk 0:02:09]}  Qd7 {[%clk 0:02:07]} 14. d5 {[%clk 0:02:01]}  Nce7 {[%clk 0:02:07]} 15. Be3 {[%clk 0:01:40]}  Kb8 {[%clk 0:02:03]} 16. Bxf5 {[%clk 0:01:26]}  Nxf5 {[%clk 0:02:02]} 17. Rac1 {[%clk 0:01:25]}  a6 {[%clk 0:02:00]} 18. b4 {[%clk 0:01:19]}  Nxe3 {[%clk 0:01:57]} 19. Qxe3 {[%clk 0:01:12]}  Bd6 {[%clk 0:01:58]} 20. b5 {[%clk 0:01:10]}  Bf4 {[%clk 0:01:56]} 21. Qd4 {[%clk 0:00:59]}  Bxc1 {[%clk 0:01:56]} 22. bxa6 {[%clk 0:00:44]}  Bxa3 {[%clk 0:00:29]} 23. Ra1 {[%clk 0:00:39]}  Qd6 {[%clk 0:00:25]} 24. Nb5 {[%clk 0:00:29]}  Qc5 {[%clk 0:00:20]} 25. a7+ {[%clk 0:00:29]}  Ka8 {[%clk 0:00:09]} 26. Qxc5 {[%clk 0:00:28]} 1-0

[Event "January 9 Late 2024"]
[Site "https://www.chess.com"]
[Date "2024.01.09"]
[Round "6"]
[White "Tulchynskyi, Feliks"]
[Black "Kornyukov, Alexey"]
[Result "1-0"]
[Board "98"]
[TimeControl "180+1"]
[WhiteFideId "34127895"]
[BlackFideId "4150457"]
[WhiteElo "2576"]
[BlackElo "2287"]
[WhiteTeam "UKR"]
[BlackTeam "RUS"]
[WhiteClock "0:01:32"]
[BlackClock "0:00:00"]

1. Nf3 {[%clk 0:03:00]}  d5 {[%clk 0:02:51]} 2. g3 {[%clk 0:02:54]}  c5 {[%clk 0:02:45]} 3. Bg2 {[%clk 0:02:50]}  Nc6 {[%clk 0:02:42]} 4. d4 {[%clk 0:02:49]}  cxd4 {[%clk 0:02:29]} 5. Nxd4 {[%clk 0:02:50]}  e6 {[%clk 0:02:29]} 6. O-O {[%clk 0:02:49]}  Bc5 {[%clk 0:02:23]} 7. Nb3 {[%clk 0:02:48]}  Bb6 {[%clk 0:02:16]} 8. c4 {[%clk 0:02:48]}  Nge7 {[%clk 0:02:09]} 9. cxd5 {[%clk 0:02:46]}  exd5 {[%clk 0:02:07]} 10. Nc3 {[%clk 0:02:44]}  d4 {[%clk 0:02:04]} 11. Na4 {[%clk 0:02:44]}  O-O {[%clk 0:01:57]} 12. Bg5 {[%clk 0:02:43]}  f6 {[%clk 0:01:20]} 13. Bf4 {[%clk 0:02:43]}  Bg4 {[%clk 0:01:14]} 14. Nxb6 {[%clk 0:02:32]}  Qxb6 {[%clk 0:01:11]} 15. Bd6 {[%clk 0:02:29]}  Rfd8 {[%clk 0:01:03]} 16. Bc5 {[%clk 0:02:25]}  Qb5 {[%clk 0:00:56]} 17. Qd2 {[%clk 0:02:19]}  Qxe2 {[%clk 0:00:51]} 18. Rfe1 {[%clk 0:02:08]}  Qxd2 {[%clk 0:00:48]} 19. Nxd2 {[%clk 0:02:09]}  Nd5 {[%clk 0:00:45]} 20. a3 {[%clk 0:02:02]}  b6 {[%clk 0:00:35]} 21. Bb4 {[%clk 0:02:01]}  a5 {[%clk 0:00:25]} 22. Rec1 {[%clk 0:01:55]}  Rac8 {[%clk 0:00:24]} 23. h3 {[%clk 0:01:49]}  Bh5 {[%clk 0:00:22]} 24. Nc4 {[%clk 0:01:37]}  axb4 {[%clk 0:00:20]} 25. Bxd5+ {[%clk 0:01:36]}  Rxd5 {[%clk 0:00:16]} 26. Nxb6 {[%clk 0:01:37]}  Rdd8 {[%clk 0:00:15]} 27. Nxc8 {[%clk 0:01:38]}  Rxc8 {[%clk 0:00:15]} 28. axb4 {[%clk 0:01:39]}  Ne7 {[%clk 0:00:11]} 29. Rxc8+ {[%clk 0:01:38]}  Nxc8 {[%clk 0:00:11]} 30. Ra8 {[%clk 0:01:38]}  Kf7 {[%clk 0:00:10]} 31. Rxc8 {[%clk 0:01:38]}  Ke7 {[%clk 0:00:11]} 32. Rc4 {[%clk 0:01:38]}  d3 {[%clk 0:00:10]} 33. Rd4 {[%clk 0:01:38]}  Be2 {[%clk 0:00:10]} 34. b5 {[%clk 0:01:38]}  d2 {[%clk 0:00:10]} 35. b6 {[%clk 0:01:35]}  Bb5 {[%clk 0:00:11]} 36. b7 {[%clk 0:01:34]}  Bd3 {[%clk 0:00:00]} 37. Rxd3 {[%clk 0:01:32]} 1-0